fUSD/lending_fUSD_20251117
["ID","MTS","AMOUNT","RATE_DAILY","PERIOD"]
[394176832,1763355032519,-250.0,0.00017301,2]
[394176833,1763355032528,-506.18,0.00017338,2]
[394176834,1763355032537,-177.22059077,0.0001737,2]
[394176835,1763355032546,-277.35679052,0.00017429,2]
[394176836,1763355032556,-168.0,0.00017435,2]
[394176837,1763355032565,-534.28626701,0.00017462,2]
[394176838,1763355032575,-1480.39298694,0.00017637,2]
[394176839,1763355032583,-168.0,0.00017653,2]
[394176840,1763355032596,-168.0,0.00017731,2]
[394176842,1763355032605,-168.0,0.0001775,2]
[394176843,1763355032615,-177.22059077,0.00017831,2]
[394176844,1763355032627,-500.0,0.00017889,2]
[394176845,1763355032637,-500.0,0.00017889,2]
[394176846,1763355032646,-500.0,0.00017889,2]
[394176847,1763355032656,-500.0,0.00017889,2]
[394176848,1763355032666,-500.0,0.00017889,2]
[394176849,1763355032676,-500.0,0.00017889,2]
[394176850,1763355032689,-500.0,0.00017889,2]
[394176851,1763355032699,-500.0,0.00017889,2]
[394176853,1763355032708,-500.0,0.00017889,2]
[394176855,1763355032717,-500.0,0.00017889,2]
[394176856,1763355032726,-500.0,0.00017889,2]
[394176859,1763355032735,-421.27753905,0.00017889,2]
[394176860,1763355032745,-722.29467877,0.00017899,2]
[394176862,1763355032754,-167.7409447,0.000179,2]
[394176863,1763355032763,-252.24126669,0.000179,2]
[394176864,1763355032772,-474.66154736,0.000179,2]
[394176865,1763355032781,-709.31030113,0.000179,2]
[394176866,1763355032791,-17873.85971658,0.000179,2]
[394176867,1763355032800,-338.70932638,0.000179,2]
[394176868,1763355032809,-4784.08830427,0.000179,2]
[394176869,1763355032818,-500.0,0.00017906,2]
[394176870,1763355032827,-1747.44,0.00017931,2]
[394176871,1763355032836,-304.036,0.00017931,2]
[394176872,1763355032846,-168.0,0.00017962,2]
[394176873,1763355032855,-7692.0,0.00017973,2]
[394176874,1763355032865,-500.0,0.00017973,2]
[394176875,1763355032874,-162.28209688,0.00017973,2]
[394176876,1763355032884,-506.88934858,0.00017973,2]
[394176877,1763355032893,-500.0,0.00017973,2]
[394176878,1763355032902,-501.90608714,0.00017973,2]
[394176879,1763355032912,-503.6961268,0.00017973,2]
[394176880,1763355032921,-170.86303096,0.00017973,2]
[394176881,1763355032930,-500.0,0.00017973,2]
[394176882,1763355032940,-500.0,0.00017973,2]
[394176883,1763355032950,-500.0,0.00017973,2]
[394176884,1763355032959,-630.75143934,0.00017973,2]
[394176885,1763355032968,-501.38602614,0.00017973,2]
[394176886,1763355032977,-558.41,0.00017989,2]
[394176887,1763355032987,-1228.29445183,0.0001799,2]
[394176888,1763355032995,-2385.21,0.0001799,2]
[394176889,1763355033005,-2385.21,0.0001799,2]
[394176890,1763355033014,-2385.21,0.0001799,2]
[394176891,1763355033023,-2385.21,0.0001799,2]
[394176892,1763355033033,-2385.21,0.0001799,2]
[394176893,1763355033042,-8144.12463651,0.00017999,2]
[394176894,1763355033055,-918.12795199,0.00017999,2]
[394176895,1763355033073,-903.60764366,0.00017999,2]
[394176896,1763355033084,-1368.79074071,0.00017999,2]
[394176897,1763355033095,-612.54757404,0.00017999,2]
[394176898,1763355033110,-688.72,0.00017999,2]
[394176903,1763355038486,-1498.14597139,0.00017999,2]
[394176904,1763355038497,-422.22153939,0.00017999,2]
[394176905,1763355038508,-77.77846061,0.00017999,2]
[394176906,1763355038518,-500.0,0.00017999,2]
[394176907,1763355038528,-500.0,0.00017999,2]
[394176908,1763355038537,-500.0,0.00017999,2]
[394176909,1763355038546,-300.0,0.00017999,2]
[394176910,1763355038556,-500.0,0.00017999,2]
[394176911,1763355038565,-500.0,0.00017999,2]
[394176912,1763355038575,-500.0,0.00017999,2]
[394176913,1763355038585,-632.41209536,0.00017999,2]
[394176914,1763355038594,-315.61927332,0.00017999,2]
[394176915,1763355038604,-500.0,0.00017999,2]
[394176916,1763355038613,-508.96624547,0.00017999,2]
[394176917,1763355038622,-500.0,0.00017999,2]
[394176918,1763355038633,-500.0,0.00017999,2]
[394176919,1763355038642,-501.76256434,0.00017999,2]
[394176921,1763355038651,-300.0,0.00017999,2]
[394176922,1763355038660,-500.0,0.00017999,2]
[394176924,1763355038670,-500.0,0.00017999,2]
[394176926,1763355038680,-500.0,0.00017999,2]
[394176928,1763355038690,-500.0,0.00017999,2]
[394176930,1763355038700,-500.0,0.00017999,2]
[394176932,1763355038709,-500.0,0.00017999,2]
[394176934,1763355038718,-500.0,0.00017999,2]
[394176937,1763355038728,-500.0,0.00017999,2]
[394176939,1763355038737,-500.0,0.00017999,2]
[394176941,1763355038746,-500.0,0.00017999,2]
[394176943,1763355038756,-500.0,0.00017999,2]
[394176945,1763355038765,-500.0,0.00017999,2]
[394176947,1763355038774,-500.0,0.00017999,2]
[394176949,1763355038784,-500.0,0.00017999,2]
[394176950,1763355038792,-500.0,0.00017999,2]
[394176953,1763355038802,-500.0,0.00017999,2]
[394176955,1763355038811,-500.0,0.00017999,2]
[394176956,1763355038820,-500.0,0.00017999,2]
[394176958,1763355038829,-500.0,0.00017999,2]
[394176960,1763355038839,-500.0,0.00017999,2]
[394176962,1763355038847,-500.0,0.00017999,2]
[394176964,1763355038857,-254.35031069,0.00017999,2]
[394176967,1763355038867,-500.0,0.00017999,2]
[394176968,1763355038876,-500.0,0.00017999,2]
[394176971,1763355038885,-300.0,0.00017999,2]
[394176972,1763355038894,-500.0,0.00017999,2]
[394176975,1763355038904,-500.0,0.00017999,2]
[394176976,1763355038913,-500.0,0.00017999,2]
[394176978,1763355038922,-307.1059487,0.00017999,2]
[394176980,1763355038932,-500.0,0.00017999,2]
[394176982,1763355038942,-500.0,0.00017999,2]
[394176984,1763355038952,-501.79448901,0.00017999,2]
[394176986,1763355038961,-500.0,0.00017999,2]
[394176988,1763355038970,-500.0,0.00017999,2]
[394176990,1763355038979,-623.05888412,0.00017999,2]
[394176992,1763355038989,-500.0,0.00017999,2]
[394176994,1763355038998,-500.0,0.00017999,2]
[394176996,1763355039008,-500.0,0.00017999,2]
[394176998,1763355039018,-500.0,0.00017999,2]
[394176999,1763355039027,-340.0,0.00017999,2]
[394177000,1763355039037,-500.0,0.00017999,2]
[394177001,1763355039046,-500.0,0.00017999,2]
[394177002,1763355039056,-500.0,0.00017999,2]
[394177003,1763355039065,-500.0,0.00017999,2]
[394177004,1763355039074,-505.95560914,0.00017999,2]
[394177006,1763355039084,-196.39990074,0.00017999,2]
[394177008,1763355039093,-500.0,0.00017999,2]
[394177009,1763355039102,-500.0,0.00017999,2]
[394177011,1763355039112,-500.0,0.00017999,2]
[394177013,1763355039122,-500.0,0.00017999,2]
[394177015,1763355039135,-440.0,0.00017999,2]
[394177017,1763355039145,-500.0,0.00017999,2]
[394177019,1763355039155,-500.0,0.00017999,2]
[394177021,1763355039164,-500.0,0.00017999,2]
[394177023,1763355039174,-500.0,0.00017999,2]
[394177025,1763355039183,-500.0,0.00017999,2]
[394177027,1763355039192,-500.0,0.00017999,2]
[394177029,1763355039202,-164.71213275,0.00017999,2]
[394177031,1763355039212,-500.0,0.00017999,2]
[394177033,1763355039222,-500.0,0.00017999,2]
[394177035,1763355039231,-500.0,0.00017999,2]
[394177037,1763355039241,-167.12435592,0.00017999,2]
[394177039,1763355039251,-500.0,0.00017999,2]
[394177041,1763355039261,-1853773.193525,0.00018,2]
[394177044,1763355039281,-484.06150241,0.00018,2]
[394177047,1763355039296,-471.87366345,0.00018,2]
[394177157,1763355040308,-7410.88977084,0.00018,2]
[394177159,1763355040319,-392.55736912,0.00018,2]
[394177165,1763355040364,-504.582,0.00018,2]
[394177471,1763355043454,-21774.71006907,0.00018,2]
[394177519,1763355043874,-222200.12634612,0.00018,2]
[394177785,1763355046541,-301.14268797,0.00017728,2]
[394177793,1763355046599,-3488.05735105,0.00017728,2]
[394177800,1763355046657,-1819.1092436,0.00017728,2]
[394177807,1763355046714,-279.69071738,0.00017728,2]
[394177809,1763355046723,-3639.15385419,0.00018,2]
[394178228,1763356140989,150.0,0.00030134,120]
[394178387,1763356231823,-1000.0,0.00016438,2]
[394178388,1763356231835,-711.51,0.00016438,2]
[394178389,1763356231845,-4034.51,0.00017018,2]
[394178390,1763356231854,-195.0,0.00017052,2]
[394178391,1763356231863,-195.0,0.00017086,2]
[394178393,1763356231873,-557.84,0.00017155,2]
[394178395,1763356231882,-150.0,0.00017166,2]
[394178397,1763356231891,-166.66,0.00017225,2]
[394178398,1763356231902,-168.0,0.00017362,2]
[394178399,1763356231911,-166.7,0.00017554,2]
[394178400,1763356231920,-166.66,0.00017588,2]
[394178401,1763356231929,-1200.0,0.00017599,2]
[394178402,1763356231938,-412.0,0.000176,2]
[394178403,1763356231946,-222.2113773,0.00017758,2]
[394178404,1763356231955,-300.0,0.00017788,2]
[394178405,1763356231964,-300.0,0.00017788,2]
[394178406,1763356231973,-1019.73568825,0.00017789,2]
[394178407,1763356231982,-277.35679052,0.00017789,2]
[394178408,1763356231991,-1200.0,0.00017798,2]
[394178409,1763356231999,-2000.0,0.000178,2]
[394178410,1763356232008,-968.27969888,0.000178,2]
[394178411,1763356232018,-437.88240273,0.00017873,2]
[394178412,1763356232027,-437.88240273,0.00017887,2]
[394178413,1763356232036,-385.0,0.00017888,2]
[394178414,1763356232046,-503.87,0.00017889,2]
[394178415,1763356232055,-385.29565655,0.00017889,2]
[394178416,1763356232065,-500.0,0.00017889,2]
[394178417,1763356232075,-500.0,0.00017889,2]
[394178418,1763356232084,-500.0,0.00017889,2]
[394178419,1763356232094,-500.0,0.00017889,2]
[394178420,1763356232103,-500.0,0.00017889,2]
[394178421,1763356232112,-500.0,0.00017889,2]
[394178422,1763356232122,-500.0,0.00017889,2]
[394178423,1763356232131,-500.0,0.00017889,2]
[394178424,1763356232140,-500.0,0.00017889,2]
[394178425,1763356232151,-500.0,0.00017889,2]
[394178426,1763356232160,-500.0,0.00017889,2]
[394178427,1763356232169,-437.88240273,0.000179,2]
[394178428,1763356232178,-3682.6403,0.000179,2]
[394178429,1763356232188,-455.90524604,0.000179,2]
[394178431,1763356232197,-17142.97881916,0.000179,2]
[394178433,1763356232206,-246.82790222,0.000179,2]
[394178434,1763356232216,-162.65,0.00017943,2]
[394178435,1763356232225,-1568.144,0.0001795,2]
[394178436,1763356232234,-243.229,0.0001795,2]
[394178437,1763356232243,-166.66,0.0001795,2]
[394178438,1763356232252,-175.78640111,0.00017973,2]
[394178439,1763356232262,-500.0,0.00017973,2]
[394178440,1763356232272,-500.0,0.00017973,2]
[394178441,1763356232281,-500.0,0.00017973,2]
[394178442,1763356232290,-500.0,0.00017973,2]
[394178443,1763356232300,-528.25334484,0.00017973,2]
[394178444,1763356232309,-500.0,0.00017973,2]
[394178445,1763356232318,-225.35823399,0.00017973,2]
[394178446,1763356232329,-500.0,0.00017973,2]
[394178447,1763356232338,-500.0,0.00017973,2]
[394178448,1763356232348,-500.0,0.00017973,2]
[394178449,1763356232358,-501.86062996,0.00017973,2]
[394178450,1763356232367,-500.0,0.00017973,2]
[394178451,1763356232377,-500.75757179,0.00017973,2]
[394178452,1763356232386,-512.5608852,0.00017973,2]
[394178453,1763356232395,-182.8775756,0.00017973,2]
[394178454,1763356232405,-154.90210025,0.00017998,2]
[394178455,1763356232414,-500.0,0.00017999,2]
[394178456,1763356232424,-500.0,0.00017999,2]
[394178457,1763356232434,-500.0,0.00017999,2]
[394178458,1763356232443,-500.0,0.00017999,2]
[394178459,1763356232453,-500.0,0.00017999,2]
[394178460,1763356232463,-500.0,0.00017999,2]
[394178461,1763356232473,-500.0,0.00017999,2]
[394178462,1763356232483,-500.0,0.00017999,2]
[394178463,1763356232492,-500.0,0.00017999,2]
[394178464,1763356232502,-500.0,0.00017999,2]
[394178465,1763356232511,-465.51794195,0.00017999,2]
[394178466,1763356232520,-616.79132273,0.00017999,2]
[394178467,1763356232530,-519.46587385,0.00017999,2]
[394178468,1763356232539,-529.4595489,0.00017999,2]
[394178469,1763356232549,-500.0,0.00017999,2]
[394178470,1763356232558,-321.9559666,0.00017999,2]
[394178471,1763356232568,-500.0,0.00017999,2]
[394178472,1763356232578,-500.0,0.00017999,2]
[394178473,1763356232587,-1075.0940966,0.00017999,2]
[394178474,1763356232597,-500.0,0.00017999,2]
[394178475,1763356232607,-500.0,0.00017999,2]
[394178476,1763356232619,-500.0,0.00017999,2]
[394178477,1763356232630,-500.0,0.00017999,2]
[394178478,1763356232640,-500.0,0.00017999,2]
[394178479,1763356232651,-500.0,0.00017999,2]
[394178480,1763356232660,-500.0,0.00017999,2]
[394178481,1763356232671,-500.0,0.00017999,2]
[394178482,1763356232681,-500.0,0.00017999,2]
[394178483,1763356232691,-500.0,0.00017999,2]
[394178484,1763356232703,-500.0,0.00017999,2]
[394178485,1763356232712,-500.0,0.00017999,2]
[394178486,1763356232721,-500.0,0.00017999,2]
[394178487,1763356232731,-500.0,0.00017999,2]
[394178488,1763356232740,-500.0,0.00017999,2]
[394178489,1763356232750,-500.0,0.00017999,2]
[394178490,1763356232759,-500.0,0.00017999,2]
[394178491,1763356232769,-500.0,0.00017999,2]
[394178492,1763356232779,-500.0,0.00017999,2]
[394178493,1763356232789,-500.0,0.00017999,2]
[394178494,1763356232799,-497.36120917,0.00017999,2]
[394178495,1763356232808,-500.0,0.00017999,2]
[394178496,1763356232818,-500.0,0.00017999,2]
[394178497,1763356232827,-500.0,0.00017999,2]
[394178498,1763356232837,-500.0,0.00017999,2]
[394178499,1763356232846,-500.0,0.00017999,2]
[394178500,1763356232855,-604986.22659402,0.00018,2]
[394178501,1763356232865,-181.81403796,0.00018,2]
[394178502,1763356232875,-2312.3746152,0.00018,2]
[394178503,1763356232884,-200.0,0.00018,2]
[394178504,1763356232895,-210.01383738,0.00018,2]
[394178505,1763356232904,-200.0,0.00018,2]
[394178506,1763356232913,-151.0,0.00018,2]
[394178507,1763356232923,-1240.10254072,0.00018,2]
[394178508,1763356232932,-1296.10619,0.00018,2]
[394178509,1763356232941,-168.0,0.00018007,2]
[394178510,1763356232950,-1000.0,0.00018082,2]
[394178511,1763356232959,-300.0,0.00018082,2]
[394178512,1763356232968,-250.0,0.00018082,2]
[394178513,1763356232977,-171.0,0.00018137,2]
[394178514,1763356232986,-287.18,0.00018153,2]
[394178515,1763356232995,-503.87,0.00018163,2]
[394178516,1763356233005,-200.0,0.0001818,2]
[394178517,1763356233014,-200.0,0.0001818,2]
[394178518,1763356233024,-168.0,0.00018289,2]
[394178519,1763356233034,-1000.0,0.000183,2]
[394178520,1763356233043,-166.66,0.00018313,2]
[394178521,1763356233053,-200.0,0.00018362,2]
[394178522,1763356233063,-200.0,0.00018362,2]
[394178523,1763356233072,-171.35,0.00018393,2]
[394178524,1763356233081,-300.0,0.00018398,2]
[394178525,1763356233090,-168.0,0.00018418,2]
[394178526,1763356233099,-503.87,0.00018437,2]
[394178527,1763356233109,-168.0,0.00018445,2]
[394178528,1763356233119,-200.0,0.00018462,2]
[394178529,1763356233128,-200.0,0.00018463,2]
[394178530,1763356233409,-168.0,0.00018482,2]
[394178531,1763356233421,-168.0,0.00018489,2]
[394178532,1763356233430,-168.0,0.00018492,2]
[394178533,1763356233440,-1070.0,0.000185,2]
[394178534,1763356233450,-249.76,0.00018509,2]
[394178535,1763356233460,-508.28181366,0.00018521,2]
[394178536,1763356233470,-1000.0,0.00018521,2]
[394178537,1763356233479,-500.0,0.00018521,2]
[394178538,1763356233489,-506.79679862,0.00018521,2]
[394178539,1763356233499,-200.0,0.00018545,2]
[394178540,1763356233509,-200.0,0.00018545,2]
[394178541,1763356233519,-168.0,0.00018586,2]
[394178542,1763356233529,-1116.12096278,0.00018612,2]
[394178543,1763356233538,-150.0,0.00018612,2]
[394178544,1763356233548,-1583.12999293,0.00018612,2]
[394178545,1763356233558,-150.0,0.00018612,2]
[394178546,1763356233568,-871.98218644,0.00018612,2]
[394178547,1763356233577,-150.0,0.00018612,2]
[394178548,1763356233587,-3616.67933852,0.00018612,2]
[394178549,1763356233597,-293.98397462,0.00018612,2]
[394178550,1763356233607,-166.66,0.00018675,2]
[394178551,1763356233617,-503.87,0.00018711,2]
[394178552,1763356233630,-195.0,0.00018719,2]
[394178553,1763356233640,-195.0,0.00018719,2]
[394178554,1763356233649,-2558.58168984,0.00018719,2]
[394178555,1763356233659,-250.0,0.00018719,2]
[394178556,1763356233671,-300.0,0.00018719,2]
[394178557,1763356233680,-195.0,0.00018719,2]
[394178558,1763356233689,-200.0,0.00018731,2]
[394178559,1763356233700,-166.66,0.00018741,2]
[394178560,1763356233710,-1000.0,0.0001876,2]
[394178561,1763356233720,-612.35205509,0.0001881,2]
[394178562,1763356233731,-500.0,0.00018839,2]
[394178563,1763356233740,-500.0,0.00018839,2]
[394178564,1763356233750,-422.11728921,0.00018839,2]
[394178565,1763356233760,-500.0,0.00018839,2]
[394178566,1763356233772,-500.0,0.00018839,2]
[394178567,1763356233783,-500.0,0.00018839,2]
[394178568,1763356233795,-168.0,0.00018857,2]
[394178569,1763356233805,-600.0,0.000189,6]
[394178570,1763356233817,-168.0,0.00018939,2]
[394178571,1763356233828,-500.0,0.00018972,2]
[394178572,1763356233839,-500.0,0.00018973,2]
[394178573,1763356233849,-500.0,0.00018973,2]
[394178574,1763356233858,-500.91389583,0.00018973,2]
[394178575,1763356233868,-500.0,0.00018973,2]
[394178576,1763356233878,-501.00427007,0.00018973,2]
[394178577,1763356233888,-531.46991526,0.00018973,2]
[394178578,1763356233897,-500.87253113,0.00018973,2]
[394178579,1763356233908,-503.87,0.00018985,2]
[394178580,1763356233917,-500.0,0.00018989,2]
[394178581,1763356233927,-500.0,0.00018989,2]
[394178582,1763356233937,-8000.0,0.0001899,5]
[394178583,1763356233945,-343.66386376,0.0001899,2]
[394178584,1763356233955,-500.0,0.00018999,2]
[394178585,1763356233964,-500.0,0.00018999,2]
[394178586,1763356233973,-500.0,0.00018999,2]
[394178587,1763356233984,-326.05885153,0.00019,2]
[394178588,1763356233994,-865.6799877,0.00019,2]
[394178589,1763356234004,-70867.7793218,0.00019,2]
[394178590,1763356234014,-166.66,0.00019038,2]
[394178591,1763356234024,-287.61899177,0.00019158,2]
[394178592,1763356234034,-302.0,0.00019178,2]
[394178593,1763356234043,-206.00835492,0.00019178,2]
[394178594,1763356234052,-151.0,0.00019178,2]
[394178595,1763356234061,-503.91,0.00019259,2]
[394178596,1763356234070,-168.74841061,0.00019313,2]
[394178597,1763356234079,-1030.44235239,0.000194,14]
[394178598,1763356234089,-300.0,0.00019413,2]
[394178599,1763356234098,-1208.0,0.00019424,2]
[394178600,1763356234107,-1000.0,0.00019438,2]
[394178601,1763356234116,-1000.0,0.00019478,2]
[394178602,1763356234125,-166.66,0.00019514,2]
[394178603,1763356234135,-503.50967204,0.00019521,2]
[394178604,1763356234144,-503.74421931,0.00019521,2]
[394178605,1763356234153,-991.0,0.000196,2]
[394178606,1763356234162,-305.0,0.000196,2]
[394178607,1763356234172,-205.0,0.000196,2]
[394178608,1763356234181,-450.0,0.000196,2]
[394178609,1763356234190,-300.0,0.00019768,2]
[394178610,1763356234199,-504.33283396,0.00019973,2]
[394178611,1763356234209,-500.0,0.00019973,2]
[394178612,1763356234218,-500.0,0.00019973,2]
[394178613,1763356234227,-469.61672923,0.00019973,2]
[394178614,1763356234237,-500.0,0.00019999,2]
[394178615,1763356234246,-500.0,0.00019999,2]
[394178616,1763356234255,-500.0,0.00019999,2]
[394178617,1763356234265,-500.0,0.00019999,2]
[394178618,1763356234274,-500.0,0.00019999,2]
[394178619,1763356234284,-500.0,0.00019999,2]
[394178620,1763356234293,-500.0,0.00019999,2]
[394178621,1763356234302,-500.0,0.00019999,2]
[394178622,1763356234312,-400.0,0.00019999,2]
[394178623,1763356234322,-500.0,0.00019999,2]
[394178624,1763356234331,-571.38017478,0.00019999,2]
[394178625,1763356234341,-500.0,0.00019999,2]
[394178626,1763356234351,-500.0,0.00019999,2]
[394178627,1763356234361,-500.0,0.00019999,2]
[394178628,1763356234370,-537.97244686,0.00019999,2]
[394178629,1763356234380,-434.7518673,0.00019999,2]
[394178630,1763356234389,-17409.95855364,0.0002,14]
[394178631,1763356234399,-1948.89155038,0.0002,7]
[394178632,1763356234409,-20401.0,0.0002,7]
[394178633,1763356234419,-479.1746172,0.0002,7]
[394178634,1763356234429,-5629.53930542,0.0002,2]
[394178635,1763356234438,-1296.10619,0.0002,2]
[394178636,1763356234448,-1000.0,0.00020116,2]
[394178637,1763356234458,-405.89,0.00020187,2]
[394178638,1763356234468,-166.66,0.00020288,2]
[394178639,1763356234477,-30000.0,0.00020294,2]
[394178640,1763356234487,-150.0,0.00020454,2]
[394178641,1763356234497,-250.0,0.00020454,2]
[394178642,1763356234507,-227.503,0.00020454,2]
[394178643,1763356234517,-1352.516,0.00020454,2]
[394178644,1763356234527,-575.0,0.00020454,2]
[394178645,1763356234537,-740.055,0.00020454,2]
[394178646,1763356234546,-3440.845,0.00020454,2]
[394178647,1763356234556,-1624.011,0.00020454,2]
[394178648,1763356234566,-821.0,0.00020454,2]
[394178649,1763356234576,-1298.266,0.00020454,2]
[394178650,1763356234585,-819.274,0.00020454,2]
[394178651,1763356234595,-1191.0,0.00020454,2]
[394178652,1763356234604,-908.35,0.00020454,2]
[394178653,1763356234614,-705.0,0.00020454,2]
[394178654,1763356234627,-560.0,0.00020454,2]
[394178655,1763356234636,-1604.0,0.00020454,2]
[394178656,1763356234646,-500.0,0.00020504,2]
[394178657,1763356234655,-500.0,0.00020504,2]
[394178658,1763356234666,-17142.97881913,0.00020504,2]
[394178659,1763356234676,-246.82790222,0.00020504,2]
[394178660,1763356234685,-500.0,0.00020521,2]
[394178661,1763356234696,-298.26089446,0.00020527,2]
[394178662,1763356234707,-189.65,0.00020548,2]
[394178663,1763356234717,-171.35,0.00020759,2]
[394178664,1763356234726,-1000.0,0.00020795,2]
[394178665,1763356234736,-500.0,0.0002095,2]
[394178666,1763356234745,-150.99,0.00020951,2]
[394178667,1763356234755,-1284.07,0.00020951,2]
[394178668,1763356234764,-9999.99,0.00020951,2]
[394178669,1763356234774,-8060.21,0.00020951,2]
[394178670,1763356234784,-150.99,0.00020951,2]
[394178671,1763356234794,-999.99,0.00020951,2]
[394178672,1763356234804,-5999.88,0.00020951,2]
[394178673,1763356234814,-500.0,0.00021,7]
[394178674,1763356234823,-500.0,0.00021,7]
[394178675,1763356234833,-500.0,0.00021,7]
[394178676,1763356234843,-506.52,0.00021,7]
[394178677,1763356234853,-171.36,0.00021,7]
[394178678,1763356234862,-249.76,0.00021005,2]
[394178679,1763356234873,-166.66,0.00021061,2]
[394178680,1763356234882,-455.905246,0.00021249,2]
[394178681,1763356234893,-500.0,0.00021299,2]
[394178682,1763356234905,-6325.24,0.0002137,2]
[394178683,1763356234915,-2000.0,0.000215,2]
[394178684,1763356234925,-166.49,0.000215,2]
[394178685,1763356234934,-14321.0,0.00021632,2]
[394178686,1763356234943,-3674.00105714,0.00021633,2]
[394178687,1763356234953,-150.0,0.00021641,2]
[394178688,1763356234962,-519.6824783,0.00021642,2]
[394178689,1763356234971,-1000.0,0.00021643,2]
[394178690,1763356234980,-300.0,0.00021644,2]
[394178691,1763356234990,-300.0,0.00021646,2]
[394178692,1763356234999,-300.0,0.00021652,2]
[394178693,1763356235009,-300.0,0.00021655,2]
[394178694,1763356235018,-300.0,0.00021656,2]
[394178695,1763356235028,-1304.62182157,0.00021658,2]
[394178696,1763356235038,-300.0,0.00021667,2]
[394178697,1763356235048,-196.36573987,0.00021668,2]
[394178698,1763356235058,-150.0,0.00021669,2]
[394178699,1763356235067,-300.0,0.00021669,2]
[394178700,1763356235077,-300.0,0.00021669,2]
[394178701,1763356235086,-151.30383596,0.0002167,2]
[394178702,1763356235095,-300.0,0.00021676,2]
[394178703,1763356235105,-150.0,0.00021677,2]
[394178704,1763356235115,-300.0,0.0002168,2]
[394178705,1763356235126,-300.0,0.0002168,2]
[394178706,1763356235136,-300.0,0.00021681,2]
[394178707,1763356235146,-150.0,0.00021687,2]
[394178708,1763356235156,-300.0,0.00021691,2]
[394178709,1763356235165,-150.0,0.00021692,2]
[394178710,1763356235175,-150.0,0.00021693,2]
[394178711,1763356235188,-300.0,0.00021699,2]
[394178712,1763356235198,-300.0,0.00021699,2]
[394178713,1763356235209,-300.0,0.00021699,2]
[394178714,1763356235220,-300.0,0.00021702,2]
[394178715,1763356235231,-300.0,0.00021702,2]
[394178716,1763356235240,-300.0,0.00021702,2]
[394178717,1763356235249,-150.0,0.00021704,2]
[394178718,1763356235261,-300.0,0.00021704,2]
[394178719,1763356235272,-300.0,0.00021705,2]
[394178720,1763356235281,-300.0,0.00021705,2]
[394178721,1763356235293,-150.0,0.00021707,2]
[394178722,1763356235305,-300.0,0.00021707,2]
[394178723,1763356235316,-150.0,0.00021708,2]
[394178724,1763356235326,-150.0,0.00021717,2]
[394178725,1763356235335,-300.0,0.00021718,2]
[394178726,1763356235345,-300.0,0.00021723,2]
[394178727,1763356235355,-300.0,0.00021726,2]
[394178728,1763356235364,-300.0,0.00021726,2]
[394178729,1763356235373,-150.0,0.00021729,2]
[394178730,1763356235383,-300.0,0.00021731,2]
[394178731,1763356235392,-300.0,0.00021733,2]
[394178732,1763356235401,-300.0,0.00021734,2]
[394178733,1763356235410,-300.0,0.00021739,2]
[394178734,1763356235420,-300.0,0.0002174,2]
[394178735,1763356235429,-300.0,0.00021745,2]